bitfinex-derivatives/quotes_ETHF0:USTF0_20241129
["timestamp","ask_amount","ask_price","bid_price","bid_amount"]
[1732867413999,3.31649099,3555.8,3555.7,0.88778372]
[1732867414196,3.31649099,3555.9,3555.7,0.60659372]
[1732867414406,3.31649099,3555.9,3555.2,0.70308]
[1732867414407,3.31649099,3555.9,3555.8,0.88777372]
[1732867414713,3.23669,3556.0,3555.9,0.28118]
[1732867414911,3.23669,3556.0,3555.9,0.88777372]
[1732867415205,6.54389093,3556.0,3555.9,0.88777372]
[1732867416107,3.23669,3556.0,3555.9,0.60659372]
[1732867417002,3.23669,3556.0,3555.9,0.60546935]
[1732867417302,3.23669,3556.0,3555.8,0.28118]
[1732867417303,6.54179763,3556.0,3555.8,0.28118]
[1732867417507,6.54179763,3556.0,3555.9,0.60538857]
[1732867417705,6.54179763,3556.0,3555.9,0.88656857]
[1732867417706,3.23669,3556.0,3555.9,0.88656857]
[1732867420605,3.23669,3556.0,3555.9,0.88654042]
[1732867421910,3.2078,3556.0,3555.9,0.88654042]
[1732867423100,0.4386,3556.5,3555.9,0.60536042]
[1732867423101,3.6464,3556.5,3555.9,0.60536042]
[1732867423407,3.6464,3556.5,3556.4,0.28114]
[1732867423608,3.6464,3556.5,3556.4,1.10311718]
[1732867423804,3.6464,3556.5,3556.4,42.46570699]
[1732867424004,3.6464,3556.5,3556.4,42.49348886]
[1732867424707,3.6464,3556.5,3556.4,42.72204275]
[1732867425917,3.2078,3556.5,3556.4,42.5813942]
[1732867426103,3.2078,3556.5,3556.4,42.69681635]
[1732867426307,3.2078,3556.5,3556.4,43.28458755]
[1732867426811,3.2078,3556.5,3556.4,42.69677984]
[1732867427011,0.4266,3556.6,3556.4,42.41563984]
[1732867427211,0.4266,3556.6,3556.5,1.7813842]
[1732867427414,0.4266,3556.6,3556.5,0.76465233]
[1732867427608,0.4266,3556.6,3556.5,1.67880073]
[1732867427806,0.4311,3556.7,3556.6,0.28112]
[1732867428008,0.4311,3556.7,3556.6,1.11623377]
[1732867428211,0.4273,3557.1,3557.0,0.28109]
[1732867428411,2.59034359,3557.1,3557.0,0.92301271]
[1732867429011,2.87142359,3557.1,3557.0,0.57142127]
[1732867429209,2.87142359,3557.1,3557.0,0.92300651]
[1732867429410,2.87142359,3557.1,3557.0,0.57142127]
[1732867429619,2.87142359,3557.1,3557.0,0.57129375]
[1732867429812,2.87142359,3557.1,3557.0,0.36116006]
[1732867430210,2.87142359,3557.1,3557.0,0.57127282]
[1732867430712,3.09112468,3557.1,3557.0,0.19298596]
[1732867431016,2.59034359,3557.1,3556.6,0.28112]
[1732867431217,5.65195359,3556.7,3556.5,0.28113]
[1732867431515,0.4127,3556.6,3556.4,0.28113]
[1732867431715,0.4127,3556.6,3556.5,0.56179937]
[1732867432013,0.4127,3556.6,3556.5,1.12439638]
[1732867432811,0.4127,3556.6,3556.5,1.31268424]
[1732867433418,0.4127,3556.6,3556.5,1.26504602]
[1732867433813,0.69382,3556.6,3556.5,1.26504602]
[1732867434015,0.8412,3556.6,3556.5,1.26504602]
[1732867434411,0.8412,3556.6,3556.5,1.96828836]
[1732867434716,1.12232,3556.6,3556.5,1.26504602]
[1732867434918,0.48940445,3556.6,3556.5,1.44085589]
[1732867435315,0.48940445,3556.6,3556.5,2.14410088]
[1732867435920,0.48940445,3556.6,3556.5,1.26504602]
[1732867436211,0.48940445,3556.6,3556.5,0.59154602]
[1732867436808,0.48940445,3556.6,3556.5,0.14064964]
[1732867437321,0.48940445,3556.6,3556.5,0.18835908]
[1732867437813,0.48940445,3556.6,3556.5,0.18842284]
[1732867438121,0.92250445,3556.6,3556.5,0.18842284]
[1732867438417,0.92250445,3556.6,3556.5,0.14066362]
[1732867438618,0.92250445,3556.6,3556.5,0.18844783]
[1732867439115,0.92250445,3556.6,3556.5,0.14066362]
[1732867439713,3.08554804,3556.6,3556.5,0.14066362]
[1732867439914,3.08554804,3556.6,3556.5,0.84397858]
[1732867440807,3.08554804,3556.6,3556.5,1.19689521]
[1732867442621,5.28143541,3556.6,3556.5,1.19689521]
[1732867442925,5.28143541,3556.6,3556.5,1.39555211]
[1732867443718,0.92250445,3556.6,3556.5,1.39557321]
[1732867444108,0.64138445,3556.6,3556.5,1.61715017]
[1732867444415,0.20828445,3556.6,3556.5,1.61715017]
[1732867444612,0.48940445,3556.6,3556.5,1.61715017]
[1732867445317,0.20828445,3556.6,3556.5,1.61715017]
[1732867445822,0.20828445,3556.6,3556.5,1.44131759]
[1732867445823,0.48940445,3556.6,3556.5,1.44131759]
[1732867446118,0.48940445,3556.6,3556.5,2.00393937]
[1732867446523,0.48940445,3556.6,3556.5,1.15348963]
[1732867446821,0.48940445,3556.6,3556.5,0.93191267]
[1732867447022,2.65244804,3556.6,3556.5,0.93191267]
[1732867447227,4.56721541,3556.6,3556.5,0.33273268]
[1732867447516,4.56721541,3556.6,3556.5,1.44178159]
[1732867447517,4.84833541,3556.6,3556.5,1.44178159]
[1732867447724,2.65244804,3556.6,3556.5,0.49231572]
[1732867448018,10.67643567,3556.6,3555.6,0.4316]
[1732867448217,0.28119,3555.7,3555.6,0.4316]
[1732867448426,1.97669798,3555.8,3555.7,0.17742357]
[1732867448726,1.97669798,3555.8,3555.7,2.37037577]
[1732867448727,2.25787798,3555.8,3555.7,2.37037577]
[1732867449024,2.25787798,3555.8,3555.7,2.54781158]
[1732867449219,2.25787798,3555.8,3555.7,2.481258]
[1732867449417,2.25787798,3555.8,3555.7,2.33967906]
[1732867449625,1.97669798,3555.8,3555.4,0.34951305]
[1732867449915,1.97669798,3555.8,3555.0,40.8]
[1732867449916,0.28124,3555.1,3555.0,40.8]
[1732867450115,2.86607359,3555.5,3555.0,40.8]
[1732867450116,2.85586179,3555.3,3555.0,40.8]
[1732867450419,0.28124,3555.1,3555.0,40.8]
[1732867451517,3.48904,3555.1,3555.0,40.8]
[1732867452217,2.20184573,3555.1,3555.0,40.8]
[1732867452417,5.37084359,3555.5,3555.0,40.8]
[1732867452418,2.20184573,3555.2,3555.0,40.8]
[1732867452623,0.28124,3555.1,3555.0,40.8]
[1732867453822,2.20184573,3555.2,3555.0,40.8]
[1732867454022,2.48307573,3555.2,3555.0,40.8]
[1732867454324,2.20184573,3555.1,3555.0,40.8]
[1732867454723,2.48308573,3555.1,3555.0,40.8]
[1732867454919,2.20184573,3555.2,3555.0,41.08125]
[1732867455224,3.30267615,3555.4,3555.2,0.28122]
[1732867455424,3.30267615,3555.4,3555.3,0.55753136]
[1732867456626,6.79168615,3555.5,3555.3,0.4417]
[1732867456921,6.51047615,3555.5,3555.4,0.1158056]
[1732867457721,6.79168615,3555.5,3555.4,1.20542895]
[1732867458125,3.30267615,3555.5,3555.4,1.34612053]
[1732867458323,2.206239,3555.5,3555.4,1.51153493]
[1732867458528,2.206239,3555.5,3555.4,0.5977747]
[1732867458717,3.2078,3555.9,3555.5,0.28121]
[1732867458718,2.206239,3555.6,3555.5,0.28121]
[1732867458923,2.20643425,3555.6,3555.5,1.23018473]
[1732867459222,2.20643425,3555.6,3555.5,1.51139473]
[1732867459627,2.20643425,3555.6,3555.5,2.07411145]
[1732867459922,2.20643425,3555.6,3555.5,2.25202787]
[1732867460122,2.20643425,3555.6,3555.5,2.3399523]
[1732867460634,3.30267615,3555.7,3555.5,2.3399523]
[1732867460828,3.30267615,3555.7,3555.4,0.34843127]
[1732867460829,3.58386615,3555.7,3555.6,2.0587423]
[1732867461632,3.58386615,3555.7,3555.6,2.52165406]
[1732867462226,3.58386615,3555.7,3555.6,2.52165001]
[1732867463120,2.44423359,3555.7,3555.6,2.52165001]
[1732867463625,7.72280704,3555.7,3555.6,2.52165001]
[1732867464029,3.32963359,3555.7,3555.6,1.93409992]
[1732867464230,3.32963359,3555.7,3555.6,1.81825301]
[1732867464527,3.32963359,3555.7,3555.6,2.52173543]
[1732867464528,7.74219675,3555.7,3555.6,2.52173543]
[1732867464730,3.32963359,3555.7,3555.6,1.81825301]
[1732867465028,7.74221451,3555.7,3555.6,2.52172523]
[1732867465422,6.22368898,3555.7,3555.6,1.95900851]
[1732867465628,6.93297898,3555.7,3555.6,1.88380308]
[1732867465834,6.93297898,3555.7,3555.6,2.53450428]
[1732867466131,2.52039806,3555.7,3555.6,2.53450428]
[1732867466330,6.93254535,3555.7,3555.6,2.53450428]
[1732867466630,2.52039806,3555.7,3555.6,2.53450428]
[1732867467328,6.93254535,3555.7,3555.6,2.53450428]
[1732867467720,2.52039806,3555.7,3555.6,2.53450428]
[1732867468120,6.93254535,3555.7,3555.6,2.53450428]
[1732867468333,2.52039806,3555.7,3555.6,2.53450428]
[1732867468663,2.23920806,3555.7,3555.6,2.53450428]
[1732867469163,0.4281,3555.7,3555.6,2.53450428]
[1732867469361,3.30831524,3555.7,3555.6,2.53450221]
[1732867469550,3.58950524,3555.7,3555.6,2.53450221]
[1732867469749,3.30831524,3555.7,3555.6,2.53450221]
[1732867469957,3.30831524,3555.8,3555.7,0.28119]
[1732867470260,0.28118,3555.8,3555.7,2.53450221]
[1732867470455,0.28118,3555.8,3555.7,2.65039972]
[1732867470656,4.69332729,3555.8,3555.7,2.53450221]
[1732867471159,0.28118,3555.8,3555.7,1.83104144]
[1732867471561,0.28118,3555.8,3555.7,0.22862357]
[1732867471760,5.0,3555.8,3555.4,0.11596928]
[1732867471958,5.37084359,3555.5,3555.4,0.11596928]
[1732867472260,2.16304359,3555.0,3554.6,0.3489016]
[1732867472468,2.20627421,3554.7,3554.5,41.2154]
[1732867472763,2.20627421,3554.7,3554.6,0.70360116]
[1732867472961,3.48906,3554.8,3554.6,0.70360116]
[1732867472962,6.79847132,3554.8,3554.6,0.70360116]
[1732867473160,6.51721132,3554.8,3554.7,0.70360116]
[1732867473358,3.2078,3554.8,3554.7,0.70360116]
[1732867473559,2.60956098,3554.8,3554.7,0.70360116]
[1732867473756,2.32830098,3554.8,3554.7,0.70360116]
[1732867474357,2.60956098,3554.8,3554.7,0.70360116]
[1732867474760,5.9189723,3554.8,3554.7,0.70360116]
[1732867474953,5.9189723,3554.8,3554.5,41.2154]
[1732867474954,3.59800098,3554.8,3554.5,41.2154]
[1732867475149,5.75318914,3554.6,3554.5,40.8]
[1732867475354,2.44432359,3554.6,3554.5,0.70368196]
[1732867475553,2.44432359,3554.6,3554.2,0.4054]
[1732867475554,0.2813,3554.3,3554.2,0.4054]
[1732867475764,0.2813,3554.3,3554.2,1.10912023]
[1732867475765,3.4891,3554.3,3554.2,1.10912023]
[1732867475954,5.65214359,3554.3,3554.2,0.70372023]
[1732867476161,8.96092572,3554.3,3554.2,0.70372023]
[1732867476566,5.65214359,3554.3,3554.2,0.70372023]
[1732867476760,8.96092572,3554.3,3554.2,0.70372023]
[1732867477455,5.65214359,3554.3,3554.2,0.70372023]
[1732867477656,3.59008213,3554.4,3554.2,0.70372023]
[1732867477862,2.20494577,3554.3,3554.0,0.69602]
[1732867478063,2.20494577,3554.3,3554.1,0.98502193]
[1732867478259,2.20494577,3554.3,3554.2,0.70370193]
[1732867478567,2.20494577,3554.4,3554.2,0.70370193]
[1732867478761,2.20494577,3554.4,3554.3,0.70370193]
[1732867478762,0.28129,3554.4,3554.3,0.70370193]
[1732867478966,3.48909,3554.4,3554.3,0.70370193]
[1732867479350,0.28131,3554.3,3554.0,0.4147]
[1732867479549,4.17741833,3554.3,3554.1,41.50373859]
[1732867479760,0.28131,3554.2,3554.1,40.8]
[1732867480050,0.28131,3554.2,3554.1,41.91269339]
[1732867480051,0.71231,3554.2,3554.1,41.91269339]
[1732867480458,0.07892344,3554.2,3554.1,0.40894718]
[1732867480659,3.66685675,3554.2,3554.1,0.40894718]
[1732867481051,0.36023344,3554.2,3554.1,0.40894718]
[1732867481257,0.36023344,3554.2,3554.1,0.52473994]
[1732867481760,1.20573344,3554.2,3554.1,1.40939371]
[1732867483135,1.20573344,3554.2,3554.1,1.29360095]
[1732867483640,1.20573344,3554.2,3554.1,1.84644076]
[1732867485043,1.20573344,3554.2,3554.1,1.28339917]
[1732867485643,1.25082289,3554.2,3554.1,1.28339917]
[1732867486443,4.5086541,3554.2,3554.1,1.28339917]
[1732867486742,4.55374374,3554.2,3554.1,1.33118001]
[1732867486942,4.55374374,3554.2,3554.1,1.28339917]
[1732867489140,4.55374374,3554.2,3554.1,1.33118001]
[1732867489346,4.55374374,3554.2,3554.1,1.28339917]
[1732867489545,1.25082308,3554.2,3554.1,1.27606894]
[1732867489741,1.25082308,3554.2,3554.1,0.66024226]
[1732867489950,4.5537436,3554.2,3554.1,1.2760967]
[1732867490550,4.5537437,3554.2,3554.1,1.2760967]
[1732867491749,0.7517996,3554.2,3554.1,1.2760967]
[1732867491951,0.70671,3554.2,3554.1,1.8390834]
[1732867493049,0.70671,3554.2,3554.1,1.95483154]
[1732867493050,0.75179768,3554.2,3554.1,1.95483154]
[1732867493352,4.05471976,3554.2,3554.1,1.95483154]
[1732867495255,4.05471976,3554.2,3554.1,1.95488684]
[1732867495456,3.42128246,3554.2,3554.1,1.95488684]
[1732867495657,3.34800976,3554.2,3554.1,1.95488684]
[1732867496565,3.58423066,3554.2,3554.1,1.95528485]
[1732867496855,2.16304359,3554.3,3554.1,1.83951658]
[1732867497059,2.16304359,3554.3,3554.2,2.72571658]
[1732867497655,2.16304359,3554.3,3554.2,3.42945495]
[1732867498061,5.27354843,3554.7,3554.2,3.42945495]
[1732867498062,3.30292066,3554.7,3554.4,0.28129]
[1732867498256,3.2078,3554.8,3554.6,0.28127]
[1732867498462,3.30292066,3554.9,3554.7,2.99056121]
[1732867498463,2.16304359,3554.9,3554.7,2.99056121]
[1732867498663,2.16304359,3554.9,3554.8,3.40216121]
[1732867499356,2.44429359,3554.9,3554.8,3.40216121]
[1732867499561,2.44429359,3554.9,3554.8,3.66601462]
[1732867499562,2.16304359,3554.9,3554.8,3.66601462]
[1732867499775,2.16304359,3554.9,3554.8,3.69891504]
[1732867500064,2.16304359,3554.9,3554.8,3.69891016]
[1732867500262,0.9317395,3554.9,3554.8,3.69891016]
[1732867500660,0.9317395,3554.9,3554.8,3.43505675]
[1732867501065,1.2129895,3554.9,3554.8,3.43505675]
[1732867501359,0.9317395,3554.9,3554.8,3.43505675]
[1732867501555,1.2129895,3554.9,3554.8,3.43505675]
[1732867501757,1.25806509,3554.9,3554.8,3.43505675]
[1732867502164,1.2129895,3554.9,3554.8,3.43448189]
[1732867502362,1.25806538,3554.9,3554.8,3.43448189]
[1732867502565,1.2129895,3554.9,3554.8,3.43448189]
[1732867503763,0.9317395,3554.9,3554.8,3.43448189]
[1732867504367,1.2129895,3554.9,3554.8,3.43448189]
[1732867505460,1.2129895,3554.9,3554.8,3.07399178]
[1732867505772,1.2129895,3554.9,3554.8,3.43407575]
[1732867506064,0.9317395,3554.9,3554.8,3.43407575]
[1732867506266,1.04527983,3554.9,3554.8,4.07579894]
[1732867506469,1.04527983,3554.9,3554.8,1.21946319]
[1732867506665,1.04527983,3554.9,3554.8,3.85146284]
[1732867506666,0.1658074,3554.9,3554.8,3.85146284]
[1732867506866,0.1658074,3554.9,3554.8,4.42725568]
[1732867507067,0.1658074,3554.9,3554.8,4.23394071]
[1732867508172,1.04527983,3554.9,3554.8,4.23394071]
[1732867508367,6.51072066,3555.1,3554.8,2.4136151]
[1732867508570,6.51072066,3555.1,3554.8,2.60019716]
[1732867508571,1.04527983,3554.9,3554.8,2.60019716]
[1732867508963,1.04527983,3554.9,3554.8,42.37124894]
[1732867509167,1.04527983,3554.9,3554.8,44.35001914]
[1732867509466,1.04527983,3554.9,3554.8,43.98955595]
[1732867509672,1.32652983,3554.9,3554.8,1.99420713]
[1732867509867,5.784153,3554.9,3554.8,2.27620856]
[1732867510176,1.37160457,3554.9,3554.8,1.00397043]
[1732867510370,1.37160457,3554.9,3554.8,0.87963395]
[1732867510371,1.32652983,3554.9,3554.8,0.87963395]
[1732867510666,6.88729731,3554.9,3554.8,0.87963395]
[1732867510870,7.30689731,3554.9,3554.8,0.87963395]
[1732867511873,7.53307592,3554.9,3554.8,0.87963395]
[1732867512072,6.48779609,3554.9,3554.8,0.87963395]
[1732867512272,0.28129,3554.4,3554.2,0.34811413]
[1732867512475,1.04527983,3554.3,3554.1,0.34811413]
[1732867512777,1.04527983,3554.3,3553.9,0.4142]
[1732867512778,0.28132,3554.1,3554.0,0.34811413]
[1732867512971,0.28132,3554.1,3553.9,0.4142]
[1732867512972,0.28133,3554.0,3553.9,0.76231413]
[1732867513270,5.88362581,3554.0,3553.9,0.69553]
[1732867513475,1.04527983,3554.0,3553.9,0.76231413]
[1732867513669,1.04527983,3554.0,3553.9,1.04319329]
[1732867513876,7.61963838,3554.4,3554.1,0.28131]
[1732867514074,1.04527983,3554.3,3554.2,0.34844278]
[1732867514275,3.2078,3554.4,3554.2,0.34844278]
[1732867514871,3.4891,3554.4,3554.2,0.34844278]
[1732867515268,0.2813,3554.3,3554.2,0.34844278]
[1732867515470,7.61963838,3554.4,3554.2,0.34844278]
[1732867515668,3.2078,3554.4,3554.3,0.2813]
[1732867515877,4.41183838,3554.7,3554.4,0.28129]
[1732867516075,10.06329241,3554.8,3554.5,1.5983116]
[1732867516272,10.06329241,3554.8,3554.6,0.3483116]
[1732867516579,4.69310838,3554.7,3554.5,1.5983116]
[1732867516872,4.41183838,3554.7,3554.6,0.3483116]
[1732867517063,5.55987746,3554.7,3553.8,0.28134]
[1732867517381,2.16239403,3554.1,3553.9,0.36023214]
[1732867517581,2.16239403,3554.1,3554.0,0.36023214]
[1732867517582,1.28269531,3554.1,3554.0,0.36023214]
[1732867517872,1.28269531,3554.1,3554.0,0.53617552]
[1732867517873,5.69962653,3554.1,3554.0,0.53617552]
[1732867518079,5.98094653,3554.1,3554.0,1.48000636]
[1732867518277,5.10123054,3554.1,3554.0,1.48000636]
[1732867518779,4.81991054,3554.1,3554.0,1.48000636]
[1732867519474,4.41693122,3554.2,3554.0,1.76132636]
[1732867519677,7.62473122,3554.3,3554.1,1.48000636]
[1732867519866,7.62473122,3554.3,3554.2,1.76131636]
[1732867520066,4.41693122,3554.4,3554.2,2.03834253]
[1732867520270,4.41693122,3554.4,3554.3,2.17846912]
[1732867520471,4.41693122,3554.4,3554.3,2.36748088]
[1732867521073,4.41693122,3554.5,3554.3,2.36748088]
[1732867521393,7.45608001,3555.1,3554.3,2.36748088]
[1732867521394,6.57838001,3555.5,3554.4,6.66009131]
[1732867521586,3.2078,3556.1,3555.4,0.34848574]
[1732867521780,3.2078,3556.1,3555.8,0.28118]
[1732867522080,3.2078,3556.1,3555.9,2.12643353]
[1732867522279,3.2078,3556.1,3555.8,40.8]
[1732867522280,3.2078,3556.1,3556.0,2.48154644]
[1732867522682,3.48896,3556.1,3556.0,2.48154644]
[1732867523681,3.48896,3556.1,3556.0,2.48126408]
[1732867523874,3.2078,3556.1,3556.0,2.48126408]
[1732867524279,3.2078,3556.1,3556.0,2.56918729]
[1732867526272,3.2078,3556.1,3556.0,2.56919183]
[1732867527082,3.2078,3556.1,3556.0,2.56918485]
[1732867527285,0.448,3556.6,3556.0,2.56918485]
[1732867527286,3.6558,3556.6,3556.0,2.56918485]
[1732867527579,3.6558,3556.6,3556.5,0.28113]
[1732867527882,3.6558,3556.6,3556.5,2.85031485]
[1732867528074,3.6558,3556.6,3556.5,2.56918485]
[1732867529385,3.6558,3556.6,3556.5,1.86580496]
[1732867529386,3.93692,3556.6,3556.5,1.86580496]
[1732867530077,3.2078,3556.6,3556.5,1.86580496]
[1732867530386,3.2078,3556.6,3556.5,1.84793424]
[1732867530573,3.2078,3556.6,3556.5,0.75768322]
[1732867530777,3.2078,3556.6,3556.5,1.96274994]
[1732867531383,3.2078,3556.6,3556.5,1.84774843]
[1732867531988,3.42678476,3557.1,3556.5,2.55095555]
[1732867532288,3.28618403,3557.0,3556.8,0.04751295]
[1732867532579,3.28618403,3557.0,3556.9,1.28513413]
[1732867533182,3.4888,3558.1,3557.0,0.28109]
[1732867533382,1.2618,3558.4,3557.7,0.04746569]
[1732867533586,3.2078,3558.5,3557.8,2.12864709]
[1732867533791,3.2078,3558.5,3557.8,2.25861709]
[1732867534087,3.48877,3558.5,3557.8,2.53964709]
[1732867534383,0.8398,3558.4,3557.8,2.53964709]
[1732867534974,0.8398,3558.4,3557.8,43.33964709]
[1732867535779,2.16239403,3558.0,3557.8,1.84761709]
[1732867535986,0.7244,3557.9,3557.8,1.33252532]
[1732867536178,0.7244,3557.9,3557.8,1.28513413]
[1732867537183,0.7244,3557.9,3557.8,1.28274445]
[1732867538180,0.44338,3557.9,3557.8,1.33012796]
[1732867538581,0.44338,3557.9,3557.8,1.44462144]
[1732867538781,0.7244,3557.9,3557.8,1.33012796]
[1732867538983,0.44338,3557.9,3557.8,1.33012796]
[1732867539182,0.44338,3557.9,3557.8,1.39723793]
[1732867539379,0.03898,3557.9,3557.8,1.84517132]
[1732867539588,0.03898,3557.9,3557.8,0.93111051]
[1732867539889,0.03898,3557.9,3557.8,1.84504237]
[1732867540386,0.32,3557.9,3557.8,1.84504237]
[1732867540985,0.28102,3557.9,3557.8,1.84504237]
[1732867541196,0.28102,3557.9,3557.8,1.32991215]
[1732867541487,0.28103,3557.7,3557.6,0.04729202]
[1732867541693,5.65122403,3557.7,3557.6,0.04729202]
[1732867542388,3.2078,3557.7,3557.2,0.28107]
[1732867542586,3.2078,3557.7,3557.3,1.26555708]
[1732867542794,3.6182,3557.7,3557.4,0.5624745]
[1732867543084,3.6182,3557.7,3557.5,0.5624745]
[1732867543285,0.4104,3557.7,3557.6,0.5624745]
[1732867543997,3.2078,3558.1,3557.6,0.5624745]
[1732867543998,3.2078,3558.1,3557.6,1.26542511]
[1732867544185,3.2078,3558.1,3557.7,0.56241116]
[1732867544386,0.28101,3558.0,3557.8,0.56241116]
[1732867544586,0.28101,3558.0,3557.9,0.56241116]
[1732867544789,3.2078,3558.1,3557.9,0.56241116]
[1732867544987,3.2078,3558.1,3558.0,1.2653728]
[1732867545488,3.2078,3558.1,3558.0,1.5463828]
[1732867545683,3.2078,3558.1,3558.0,1.2653728]
[1732867545888,3.2078,3558.1,3558.0,1.88611497]
[1732867546080,3.2078,3558.1,3558.0,1.5463828]
[1732867546285,0.66871321,3558.9,3558.0,1.5463828]
[1732867546286,3.2078,3558.8,3558.0,1.95000006]
[1732867546595,3.2078,3558.8,3558.4,0.28098]
[1732867546787,3.2078,3558.8,3558.5,1.2653728]
[1732867546983,3.2078,3558.8,3558.6,1.2653728]
[1732867547196,3.2078,3558.8,3558.7,0.56241116]
[1732867547494,0.28096,3558.7,3558.3,0.4212]
[1732867547688,5.81269403,3559.5,3558.4,1.68966688]
[1732867547884,0.46901724,3559.4,3558.7,0.28095]
[1732867548087,0.7049,3559.4,3559.3,0.04728954]
[1732867548283,0.424,3559.4,3558.5,0.3450068]
[1732867548489,0.424,3559.4,3558.6,1.86480057]
[1732867548490,0.28091,3559.3,3558.6,1.86480057]
[1732867548699,0.28091,3559.3,3558.7,1.88221106]
[1732867548996,0.28092,3559.2,3558.8,1.26499048]
[1732867549195,0.424,3559.4,3558.9,1.26499048]
[1732867549399,3.48872,3559.1,3559.0,1.66471222]
[1732867550803,3.48872,3559.1,3559.0,1.66487441]
[1732867551095,5.65111403,3559.1,3559.0,0.39984713]
[1732867551290,5.65111403,3559.1,3559.0,0.96211104]
[1732867551492,5.65111403,3559.1,3559.0,0.92698292]
[1732867551694,5.69613326,3559.1,3559.0,1.15385918]
[1732867551896,5.69613326,3559.1,3559.0,1.10647646]
[1732867552296,3.2078,3559.1,3559.0,1.10647646]
[1732867552491,3.2078,3559.1,3559.0,2.14640682]
[1732867552492,3.25282037,3559.1,3559.0,2.14640682]
[1732867552688,2.32925965,3559.1,3559.0,2.14640682]
[1732867553100,2.32925965,3559.1,3559.0,2.49160851]
[1732867553306,2.32925965,3559.1,3559.0,2.69158947]
[1732867553491,2.32925965,3559.1,3559.0,2.69776441]
[1732867554091,2.32925965,3559.1,3559.0,1.36216817]
[1732867554293,2.32925965,3559.1,3559.0,2.9784117]
[1732867554497,1.45083056,3559.1,3559.0,3.41762623]
[1732867554804,0.04913,3559.7,3559.0,6.34449623]
[1732867555005,0.04913,3559.7,3559.6,0.62600198]
[1732867555300,0.04913,3559.7,3559.6,2.87316751]
[1732867555499,0.04913,3559.7,3559.6,2.6974817]
[1732867556601,0.04913,3559.7,3559.6,2.36040608]
[1732867557100,0.04913,3559.7,3559.6,2.96356617]
[1732867557301,0.04913,3559.7,3559.6,1.99462233]
[1732867557507,0.04913,3559.7,3559.6,3.20448952]
[1732867558097,0.04913,3559.7,3559.6,2.92360952]
[1732867558602,0.04913,3559.7,3559.6,2.92361672]
[1732867558903,1.57917977,3560.1,3559.6,3.61714113]
[1732867559103,0.4216,3560.5,3560.0,0.34536653]
[1732867559396,2.87778403,3560.9,3560.3,0.34530159]
[1732867559604,2.87778403,3560.9,3560.7,0.04736752]
[1732867559796,2.87778403,3560.9,3560.8,2.33772072]
[1732867559993,3.30548403,3560.9,3560.8,2.33772072]
[1732867560606,8.02469403,3560.9,3560.8,0.50401816]
[1732867560902,8.02469403,3560.9,3560.5,0.04737154]
[1732867560903,0.04499334,3560.9,3560.5,0.04737154]
[1732867561109,0.28079,3560.8,3560.5,0.04737154]
[1732867561399,0.28079,3560.8,3559.9,3.6429]
[1732867561600,0.28079,3560.8,3560.7,0.04737649]
[1732867561906,0.28079,3560.8,3560.7,0.04738582]
[1732867562299,2.16239403,3560.9,3559.9,3.6429]
[1732867562598,2.16239403,3560.9,3560.0,0.31182678]
[1732867562799,0.2808,3560.7,3560.0,0.28085]
[1732867563197,2.16239403,3560.9,3560.1,0.31195775]
[1732867563198,0.28079,3560.8,3560.1,0.31195775]
[1732867563402,0.2808,3560.7,3560.0,0.28085]
[1732867563705,0.28081,3560.6,3560.1,0.31187114]
[1732867563905,0.28081,3560.6,3560.2,0.31187114]
[1732867564198,3.48884571,3561.0,3560.1,2.16239403]
[1732867564404,0.28079,3560.9,3560.3,0.28083]
[1732867564606,0.28079,3560.9,3559.9,3.6429]
[1732867564805,3.48884571,3561.0,3560.3,0.4365]
[1732867565103,0.28078,3560.9,3560.3,0.4365]
[1732867565302,3.48884571,3561.0,3560.4,0.28081]
[1732867565700,3.48884571,3561.0,3560.3,0.4365]
[1732867566101,3.48884571,3561.0,3560.3,0.71732]
[1732867566398,0.28079,3560.9,3560.3,0.4365]
[1732867566805,3.48884571,3561.0,3560.3,0.4365]
[1732867567504,0.28078,3560.9,3560.3,0.71733]
[1732867568106,3.48884571,3561.0,3560.2,0.34548712]
[1732867568305,3.76962571,3561.0,3560.3,0.31184346]
[1732867568606,3.76962571,3561.0,3560.2,0.34548712]
[1732867568607,3.48884571,3561.0,3560.2,0.34548712]
[1732867568808,3.48884571,3561.0,3560.5,0.28081]
[1732867569007,3.48884571,3561.0,3560.6,0.20768174]
[1732867569202,3.48884571,3561.0,3560.3,0.34548712]
[1732867569203,3.76962571,3561.0,3560.7,0.20768174]
[1732867569408,3.48884571,3561.0,3560.8,0.20768174]
[1732867569609,3.48884571,3561.0,3560.9,0.20768174]
[1732867569610,3.2078,3561.0,3560.9,0.20768174]
[1732867570203,0.4419,3561.4,3560.9,0.20768174]
[1732867570405,0.72264,3561.4,3560.9,0.20768174]
[1732867570609,0.4419,3561.4,3560.9,0.48845174]
[1732867570799,0.4419,3561.4,3560.9,0.20768174]
[1732867571004,0.4419,3561.4,3560.7,0.8865]
[1732867571005,0.28078,3560.9,3560.7,0.8865]
[1732867571203,0.28077,3561.1,3560.8,0.90999247]
[1732867571407,0.28078,3561.0,3560.9,0.51422046]
[1732867571615,0.28076,3561.2,3560.9,1.21669358]
[1732867571814,0.28076,3561.2,3561.0,1.07621337]
[1732867572003,0.28076,3561.2,3561.1,1.07621337]
[1732867572217,4.21139622,3561.4,3561.1,1.07621337]
[1732867572412,3.93064622,3561.4,3561.2,1.07621337]
[1732867572608,3.93064622,3561.4,3561.3,0.90991304]
[1732867572609,3.6497,3561.4,3561.3,0.90991304]
[1732867572803,3.6497,3561.4,3561.3,1.45263478]
[1732867573005,3.6497,3561.4,3561.3,1.6186431]
[1732867573617,3.93044,3561.4,3561.3,1.6186431]
[1732867574010,3.48854,3561.4,3561.3,1.05675558]
[1732867574207,3.48854,3561.4,3561.3,1.61869838]
[1732867575604,8.25278853,3561.4,3560.5,0.34543322]
[1732867575805,0.28083,3560.3,3560.2,0.34543322]
[1732867576006,0.28081,3560.6,3560.2,0.65781657]
[1732867576211,0.4186,3560.6,3559.9,3.2078]
[1732867576412,0.4186,3560.6,3560.0,0.57308167]
[1732867576612,0.28084,3560.2,3560.1,0.57308167]
[1732867576815,3.2078,3560.4,3559.8,40.8]
[1732867577012,0.28086,3559.9,3559.8,40.8]
[1732867577314,3.2078,3560.4,3559.8,41.10967677]
[1732867577517,0.28082,3560.5,3559.9,0.30967677]
[1732867577820,0.69941,3560.6,3560.0,0.85396783]
[1732867578006,0.28079,3560.8,3560.2,0.28084]
[1732867578211,0.28079,3560.8,3559.9,5.37019403]
[1732867578412,0.72818,3560.9,3560.3,0.28083]
[1732867578611,0.4474,3560.9,3560.4,1.2869]
[1732867579006,0.4474,3560.9,3560.6,0.2808]